bitfinex/quotes_ETHUSD_20240928
["timestamp","ask_amount","ask_price","bid_price","bid_amount"]
[1727533506865,0.755,2680.5,2679.9,5.64286237]
[1727533507063,3.73098,2680.3,2679.7,11.18168]
[1727533507571,0.06380265,2680.2,2679.8,3.73151]
[1727533507779,0.06380265,2680.2,2679.8,5.56221137]
[1727533508108,0.06380265,2680.1,2679.8,5.56221137]
[1727533508289,3.73079,2680.4,2679.8,5.56221137]
[1727533508493,0.06380265,2680.3,2679.8,5.56221137]
[1727533508666,0.755,2680.1,2679.5,3.73193]
[1727533509066,0.755,2680.1,2679.4,4.20143371]
[1727533509067,4.48629,2680.1,2679.4,4.20143371]
[1727533509384,0.06318405,2680.0,2679.6,3.73179]
[1727533509963,0.06318405,2680.0,2679.3,3.73226]
[1727533510163,3.79463405,2680.0,2679.3,4.58233459]
[1727533510361,3.73148,2679.9,2679.3,4.58233459]
[1727533510604,3.73148,2679.9,2679.3,4.58229459]
[1727533510801,0.06264832,2679.8,2679.3,8.31451459]
[1727533511003,0.06264832,2679.8,2679.4,1.25159483]
[1727533511203,0.06264832,2679.8,2679.3,3.73222]
[1727533511920,0.06264832,2679.8,2679.4,3.73213]
[1727533512209,0.06264832,2679.8,2679.3,3.73222]
[1727533512210,3.7315,2679.9,2679.3,10.85826371]
[1727533512414,0.06251246,2679.7,2679.3,10.85826371]
[1727533512716,3.7315,2679.9,2679.4,3.73217]
[1727533512717,0.06251246,2679.6,2679.4,3.73217]
[1727533512890,3.7315,2679.9,2679.4,3.73217]
[1727533513209,0.06251246,2679.8,2679.4,3.73217]
[1727533513618,0.06251246,2679.8,2679.3,8.21187008]
[1727533513768,0.06251246,2679.8,2679.4,0.82118701]
[1727533515318,0.06251246,2679.8,2679.3,3.39383371]
[1727533515816,3.73176,2679.7,2679.1,3.39383371]
[1727533515989,3.73176,2679.7,2679.0,4.54027]
[1727533515990,4.52591,2679.6,2679.0,4.54027]
[1727533516315,4.58791672,2679.6,2679.1,0.79341037]
[1727533516861,0.06200672,2679.6,2679.5,4.18653371]
[1727533517130,11.96503,2680.3,2679.6,3.73182]
[1727533517341,4.52503,2680.3,2679.8,3.39383371]
[1727533518635,4.52503,2680.3,2679.6,3.81248708]
[1727533518937,4.52503,2680.3,2679.6,0.41865337]
[1727533519102,3.73124,2680.1,2679.6,3.81248708]
[1727533519302,3.73124,2680.1,2679.7,0.83372071]
[1727533519633,3.73142,2680.0,2679.7,0.83372071]
[1727533519834,3.73142,2680.0,2679.6,0.41865337]
[1727533520475,3.73122,2680.1,2679.6,0.41865337]
[1727533522798,4.52498,2680.3,2679.6,7.54436708]
[1727533523001,4.52498,2680.3,2679.7,0.75443671]
[1727533523505,4.52498,2680.3,2679.7,4.48618671]
[1727533524007,4.52498,2680.3,2679.8,3.73158]
[1727533524008,0.794,2680.3,2679.8,3.73158]
[1727533524807,0.794,2680.3,2679.8,7.12541371]
[1727533525018,0.05584568,2680.2,2679.8,1.20302938]
[1727533525366,4.52498,2680.3,2679.8,1.20302938]
[1727533525692,0.05584568,2680.1,2679.8,1.20302938]
[1727533525894,0.05584568,2680.0,2679.8,1.20302938]
[1727533526063,4.52498,2680.3,2679.8,1.20302938]
[1727533526265,0.05584568,2680.2,2679.8,1.20302938]
[1727533526504,4.52498,2680.3,2679.8,1.20302938]
[1727533526802,0.05584568,2680.2,2679.8,1.20302938]
[1727533527212,4.52498,2680.3,2679.8,1.20302938]
[1727533527661,0.05610266,2680.2,2679.8,1.20302938]
[1727533527865,8.25601,2680.3,2679.8,1.20302938]
[1727533528108,0.05610266,2680.2,2679.8,1.20302938]
[1727533528267,4.52498,2680.3,2679.8,1.20302938]
[1727533528667,3.78723266,2680.2,2679.8,1.20302938]
[1727533529705,3.73123,2680.1,2679.7,0.7927]
[1727533529875,3.73137,2680.0,2679.5,3.73202]
[1727533530068,3.73137,2680.0,2679.4,0.7927]
[1727533530069,3.73151,2679.9,2679.6,0.452472]
[1727533530269,3.78761266,2679.9,2679.4,0.7927]
[1727533530499,3.78761266,2679.9,2679.2,0.7927]
[1727533530500,0.794,2679.8,2679.2,0.7927]
[1727533530715,0.794,2679.8,2679.1,8.24341037]
[1727533530716,3.73201,2679.6,2679.1,8.24341037]
[1727533530921,3.7861541,2679.5,2679.1,0.79341037]
[1727533531068,0.0541041,2679.5,2679.1,0.79341037]
[1727533531405,3.73187,2679.7,2679.2,4.26431204]
[1727533531606,0.0541041,2679.4,2679.2,0.53188204]
[1727533531811,3.73194,2679.6,2679.1,3.39383371]
[1727533532006,0.09905034,2679.3,2679.1,7.12639371]
[1727533532172,7.46373,2679.7,2679.1,7.12639371]
[1727533532481,7.46371,2679.7,2679.1,7.12639371]
[1727533532680,0.09891429,2679.6,2679.1,8.29156308]
[1727533533116,3.83087429,2679.6,2679.1,8.29157308]
[1727533533618,0.7808,2679.5,2679.0,3.73264]
[1727533533788,0.7808,2679.5,2679.1,3.39383371]
[1727533534187,0.09891429,2679.4,2679.1,3.39383371]
[1727533534707,0.09891429,2679.3,2679.1,3.39383371]
[1727533534920,4.5129,2679.5,2679.1,3.77808059]
[1727533535079,3.73185,2679.7,2679.4,0.8096]
[1727533535274,3.73185,2679.7,2679.5,3.81417708]
[1727533535481,3.73185,2679.7,2679.5,3.39383371]
[1727533536215,7.46369,2679.7,2679.5,3.39383371]
[1727533536508,3.73184,2679.7,2679.5,3.39383371]
[1727533536718,3.73184,2679.7,2679.4,0.8096]
[1727533537514,7.4637,2679.7,2679.4,0.8096]
[1727533537816,0.09852129,2679.6,2679.4,0.8096]
[1727533538189,3.83042129,2679.6,2679.4,0.8096]
[1727533538694,0.09852129,2679.6,2679.4,0.8096]
[1727533541732,3.83043129,2679.6,2679.4,0.8096]
[1727533542109,3.83043129,2679.6,2679.2,0.8096]
[1727533542604,7.56245129,2679.6,2679.2,0.8096]
[1727533543635,3.83043129,2679.6,2679.2,0.8096]
[1727533543834,3.73206,2679.5,2679.2,0.8096]
[1727533544218,0.09849861,2679.4,2679.2,0.8096]
[1727533544409,0.09849861,2679.4,2679.2,1.64053067]
[1727533545437,3.83067861,2679.4,2679.2,1.64053067]
[1727533545610,3.73218,2679.4,2679.2,1.64053067]
[1727533545811,0.09845326,2679.3,2679.2,1.64053067]
[1727533546009,3.83076326,2679.3,2679.2,1.64053067]
[1727533547150,3.83076326,2679.3,2679.1,3.39383371]
[1727533548123,3.83076326,2679.3,2678.9,4.20343371]
[1727533548510,3.73231,2679.3,2678.9,4.20343371]
[1727533548712,0.09832472,2679.2,2678.9,4.20343371]
[1727533548910,7.46471,2679.3,2678.9,5.07435667]
[1727533549243,0.09832472,2679.2,2678.9,5.07435667]
[1727533549651,3.73231,2679.3,2678.9,5.07435667]
[1727533549851,0.09832472,2679.1,2678.9,5.07435667]
[1727533550143,3.73231,2679.3,2678.9,5.07435667]
[1727533550144,0.09832472,2679.0,2678.9,5.07435667]
[1727533550345,0.09504723,2679.0,2678.9,6.06464868]
[1727533550546,3.73231,2679.3,2678.9,5.07435667]
[1727533550846,0.09504723,2679.0,2678.9,5.07435667]
[1727533550999,3.73231,2679.3,2678.9,6.06467927]
[1727533551205,0.09504723,2679.0,2678.9,5.07435667]
[1727533551407,3.73231,2679.3,2678.9,6.06467776]
[1727533551613,0.09504723,2679.0,2678.9,5.07435667]
[1727533551815,3.73246,2679.2,2678.9,5.07435667]
[1727533552033,0.09504723,2679.0,2678.9,4.20343371]
[1727533552234,3.73246,2679.2,2678.9,4.20343371]
[1727533552456,3.73268,2679.1,2678.7,4.20343371]
[1727533552614,3.82772723,2679.1,2678.9,3.39383371]
[1727533553737,0.09504723,2679.1,2678.9,3.39383371]
[1727533555043,3.7324,2679.3,2678.9,3.39383371]
[1727533555285,0.09504723,2679.0,2678.9,4.29397718]
[1727533555722,7.4648,2679.3,2678.9,4.29397718]
[1727533556024,0.09504723,2679.2,2678.9,4.29397718]
[1727533556229,0.09504723,2679.2,2679.1,3.39383371]
[1727533556430,3.73245,2679.2,2679.1,3.39383371]
[1727533556624,3.82749723,2679.2,2679.1,3.39383371]
[1727533557637,0.09504723,2679.2,2678.9,3.39383371]
[1727533557949,3.73248,2679.2,2678.9,4.18749108]
[1727533558148,0.09504723,2679.1,2678.9,4.18749108]
[1727533561469,3.82770723,2679.1,2678.9,4.18749108]
[1727533561678,3.82770723,2679.1,2678.9,3.39383371]
[1727533562283,3.73273,2679.0,2678.9,3.39383371]
[1727533562492,3.82770723,2679.1,2678.7,4.20343371]
[1727533562780,0.09493383,2679.0,2678.7,4.20343371]
[1727533563089,0.39075794,2680.2,2679.4,3.73207]
[1727533563244,0.8069,2680.3,2680.1,3.39383371]
[1727533563439,4.53744,2680.6,2680.1,3.39383371]
[1727533563977,0.39077253,2681.0,2680.3,3.39383371]
[1727533563978,0.8069,2680.9,2680.3,3.39383371]
[1727533564633,0.8069,2681.1,2680.5,4.18763371]
[1727533564749,0.8069,2681.1,2680.5,4.61385858]
[1727533565528,0.8069,2681.3,2680.5,4.61385858]
[1727533565853,4.53644,2681.3,2680.5,4.61385858]
[1727533569508,4.53644,2681.3,2680.6,0.83446286]
[1727533570219,3.72969,2681.2,2680.6,0.83446286]
[1727533570511,4.53644,2681.3,2680.5,4.61385858]
[1727533570879,0.08626503,2681.2,2680.5,4.61385858]
[1727533571072,3.81594503,2681.2,2680.5,4.61385858]
[1727533572014,3.81594503,2681.2,2680.5,8.34449858]
[1727533572513,3.81594503,2681.2,2680.5,4.61385858]
[1727533573011,3.81594503,2681.2,2680.5,8.34447858]
[1727533573215,3.81594503,2681.2,2680.6,1.20751586]
[1727533574309,3.81594503,2681.2,2680.5,8.34447858]
[1727533574971,3.72981,2681.1,2680.5,8.34447858]
[1727533575367,3.81621503,2681.0,2680.5,4.61385858]
[1727533575581,3.73011,2680.9,2680.5,3.39383371]
[1727533575866,3.73011,2680.9,2680.3,3.39383371]
[1727533575867,7.46031,2680.9,2680.3,3.39383371]
[1727533576071,0.08626503,2680.8,2680.3,3.88462005]
[1727533576318,0.08626503,2680.8,2680.3,7.61543005]
[1727533577124,3.7304,2680.7,2680.2,0.7581]
[1727533577340,3.73052,2680.6,2680.2,0.7581]
[1727533577496,3.73052,2680.6,2680.1,3.39383371]
[1727533577701,3.73072,2680.5,2680.1,3.39383371]
[1727533577934,3.81698503,2680.5,2680.1,3.39383371]
[1727533578138,3.81698503,2680.5,2680.0,8.2081]
[1727533578441,3.73082,2680.4,2680.0,8.2081]
[1727533578749,0.8058,2680.8,2680.3,3.39383371]
[1727533578900,0.8058,2680.8,2680.7,3.39383371]
[1727533579100,3.73017,2680.9,2680.5,3.39383371]
[1727533580508,3.73017,2680.9,2680.3,8.7122221]
[1727533581501,4.53564,2681.1,2680.5,3.39383371]
[1727533581744,4.53564,2681.1,2680.6,0.33938337]
[1727533582706,3.7301,2680.9,2680.6,0.33938337]
[1727533582904,3.7301,2680.9,2680.3,8.7123021]
[1727533583211,0.08705046,2680.8,2680.3,8.7123021]
[1727533583422,0.08705046,2680.8,2680.3,12.4431421]
[1727533583607,0.08705046,2680.8,2680.7,3.39383371]
[1727533583808,3.72984,2681.1,2680.7,4.10627808]
[1727533584127,3.72984,2681.1,2680.3,5.31837839]
[1727533584128,3.73007,2681.0,2680.5,3.39383371]
[1727533584336,3.81724611,2680.9,2680.5,3.39383371]
[1727533584637,3.73031,2680.8,2680.3,4.9814021]
[1727533584837,3.73031,2680.8,2680.4,0.49814021]
[1727533585238,0.08712611,2680.7,2680.4,0.49814021]
[1727533585757,3.73012,2680.9,2680.4,0.49814021]
[1727533586148,0.08712611,2680.8,2680.4,0.49814021]
[1727533586461,0.08712611,2680.8,2680.5,3.39383371]
[1727533586757,0.08712611,2680.8,2680.6,0.38919739]
[1727533589769,0.08712611,2680.8,2680.6,1.16679739]
[1727533589935,3.72997,2681.0,2680.6,1.16679739]
[1727533590125,0.08733038,2680.7,2680.6,1.16679739]
[1727533590470,3.7301,2680.9,2680.4,0.7776]
[1727533591063,3.81772602,2680.8,2680.4,0.7776]
[1727533592629,0.08740602,2680.8,2680.4,0.7776]
[1727533593343,3.73024,2680.8,2680.4,0.7776]
[1727533593545,0.08740602,2680.7,2680.4,0.7776]
[1727533593855,3.73024,2680.8,2680.4,0.7776]
[1727533594057,0.08740602,2680.6,2680.4,0.7776]
[1727533594372,3.73031,2680.8,2680.4,0.7776]
[1727533594567,0.08740602,2680.5,2680.4,0.7776]
[1727533594773,7.46065,2680.8,2680.4,0.7776]
[1727533595073,3.81771551,2680.7,2680.4,0.7776]
[1727533595274,5.39071806,2680.7,2680.1,0.8126]
[1727533595476,4.63591551,2680.7,2680.1,0.8126]
[1727533595640,3.73073,2680.5,2680.1,0.8126]
[1727533596064,0.08733794,2680.4,2680.1,0.8126]
[1727533596574,3.73095,2680.3,2679.8,4.54421]
[1727533596733,4.63635177,2680.3,2679.8,4.54421]
[1727533597180,0.90540177,2680.3,2679.9,3.73146]
[1727533597488,0.90540177,2680.3,2679.9,3.39383371]
[1727533597646,0.90540177,2680.3,2679.8,8.25681437]
[1727533597848,0.90540177,2680.3,2679.9,3.39383371]
[1727533598169,0.90540177,2680.3,2679.9,7.12522371]
[1727533598375,0.08720177,2680.3,2679.9,7.99839652]
[1727533599438,0.08720177,2680.3,2679.9,7.99026318]
[1727533599638,0.08720177,2680.3,2679.9,7.11709037]
[1727533599840,0.08720177,2680.3,2680.0,3.73126]
[1727533600061,0.08720177,2680.3,2680.2,3.39383371]
[1727533600264,3.73054,2680.6,2680.2,3.39383371]
[1727533600584,4.558439,2680.6,2680.2,3.39383371]
[1727533601172,3.73065,2680.5,2680.2,3.39383371]
[1727533601374,4.558439,2680.6,2680.2,3.39383371]
[1727533601736,3.73073,2680.5,2680.2,3.39383371]
[1727533601962,3.73073,2680.5,2680.1,0.8126]
[1727533603635,0.827899,2680.6,2680.2,3.39383371]
[1727533603873,3.73052,2680.6,2680.2,3.39383371]
[1727533604245,3.73065,2680.5,2680.2,3.39383371]
[1727533604951,7.46094,2680.7,2680.2,3.39383371]
[1727533606087,3.73051,2680.6,2680.2,3.39383371]
[1727533607076,3.73046,2680.7,2680.2,3.39383371]
[1727533608085,7.4609,2680.7,2680.2,3.39383371]
[1727533608795,3.73044,2680.7,2680.2,3.39383371]
[1727533608994,3.73058,2680.6,2680.2,3.39383371]
[1727533610145,3.73058,2680.6,2680.2,1.56668154]
[1727533610844,0.08740602,2680.5,2680.2,1.56668154]
[1727533612458,3.73058,2680.6,2680.2,1.56668154]
[1727533613248,3.73058,2680.6,2680.2,5.29773154]
[1727533613453,0.08697481,2680.5,2680.2,5.29773154]
[1727533614214,3.73058,2680.6,2680.2,5.29773154]
[1727533614574,0.08697481,2680.4,2680.2,1.56668154]
[1727533614907,3.73058,2680.6,2680.2,1.56668154]
[1727533615108,3.73037,2680.7,2680.2,5.29772154]
[1727533615311,0.08697481,2680.3,2680.2,5.29772154]
[1727533615464,0.08697481,2680.3,2680.2,6.28186469]
[1727533615670,3.73009,2680.9,2680.3,3.7308]
[1727533615916,0.08697481,2680.6,2680.5,0.8032]
[1727533616086,4.49463,2681.0,2680.5,0.8032]
[1727533616423,3.73003,2681.0,2680.6,5.29717154]
[1727533616571,3.73003,2681.0,2680.6,1.56668154]
[1727533617280,11.16976,2681.2,2680.6,5.29707154]
[1727533617509,11.16976,2681.2,2680.7,3.73035]
[1727533617819,11.16976,2681.2,2681.0,1.56668154]
[1727533617984,3.72956,2681.3,2681.0,2.36988154]
[1727533618187,3.72956,2681.3,2681.0,0.8032]
[1727533618571,3.72976,2681.2,2681.0,0.8032]
[1727533618976,3.72981,2681.1,2680.8,0.8032]
[1727533619207,3.72981,2681.1,2680.4,3.73068]
[1727533619208,3.73011,2680.9,2680.5,0.8032]
[1727533619715,3.73006,2681.0,2680.5,0.8032]
[1727533620276,3.73006,2681.0,2680.5,4.53377]
[1727533620470,3.73006,2681.0,2680.5,0.8032]
[1727533620471,7.46009,2681.0,2680.5,0.8032]
[1727533620718,3.73009,2680.9,2680.5,0.8032]
[1727533621418,7.909576,2681.0,2680.5,0.8032]
[1727533621740,4.179496,2681.0,2680.5,0.8032]
[1727533622212,3.73019,2680.9,2680.5,0.8032]
[1727533622627,7.909556,2681.0,2680.5,0.8032]
[1727533622778,4.179496,2681.0,2680.5,0.8032]
[1727533623501,3.73015,2680.9,2680.4,3.73067]
[1727533623881,4.179416,2681.0,2680.5,3.73063]
[1727533624081,0.4944016,2680.9,2680.4,3.73067]
[1727533624508,0.4944016,2680.9,2680.4,7.46138]
[1727533625178,0.4944016,2680.9,2680.4,3.73067]
[1727533625887,0.4944016,2680.9,2680.5,3.73064]
[1727533626490,0.4944016,2680.9,2680.4,3.73067]
[1727533626714,0.4944016,2680.9,2680.4,7.46136]
[1727533627223,4.2244916,2680.9,2680.4,3.73067]
[1727533627630,4.52576416,2680.8,2680.3,0.8032]
[1727533627800,3.81746124,2680.8,2680.3,0.8032]
[1727533628124,0.7646,2680.7,2680.3,4.53407]
[1727533628700,0.08714124,2680.6,2680.3,4.53407]
[1727533629427,0.08714124,2680.6,2680.3,0.8032]
[1727533630017,0.08714124,2680.6,2680.2,3.39272183]
[1727533630627,0.08714124,2680.6,2680.2,7.12370183]
[1727533630839,0.08714124,2680.6,2680.2,3.73098]
[1727533631700,3.81766124,2680.6,2680.2,3.73098]
[1727533633000,0.45822612,2680.5,2680.0,7.12405183]
[1727533633243,3.73101,2680.3,2679.9,0.8032]
[1727533633403,3.73101,2680.3,2679.8,3.39272183]
[1727533633592,3.81810534,2680.2,2679.8,3.39272183]
[1727533633930,0.08703534,2680.2,2679.8,3.39272183]
[1727533634141,3.73101,2680.3,2679.8,3.39272183]
[1727533634295,0.08698238,2680.1,2679.8,3.39272183]
[1727533634498,3.73101,2680.3,2679.8,3.39272183]
[1727533634691,0.08698238,2680.0,2679.8,3.39272183]
[1727533634917,7.46203,2680.3,2679.8,3.39272183]
[1727533635198,0.08698238,2679.9,2679.8,7.12426183]
[1727533635550,0.08684617,2679.9,2679.8,7.12426183]
[1727533635696,3.73101,2680.3,2679.8,7.12426183]
[1727533635911,0.08684617,2679.9,2679.8,3.39272183]
[1727533636129,0.796,2680.1,2679.8,3.39272183]
[1727533636331,4.5272,2680.1,2679.8,3.39272183]
[1727533636924,0.08683104,2680.0,2679.8,3.39272183]
[1727533638257,0.08683104,2680.0,2679.9,1.56716315]
[1727533639117,3.73106,2680.2,2679.9,1.56716315]
[1727533639323,0.08683104,2680.0,2679.9,1.56716315]
[1727533639957,0.08677806,2680.0,2679.9,1.56716315]
[1727533640249,8.25806,2680.3,2679.9,1.56716315]
[1727533640585,3.81793806,2680.2,2679.9,1.56716315]
[1727533647320,0.08677806,2680.2,2679.9,1.56716315]
[1727533647522,8.25807,2680.3,2679.9,1.56716315]
[1727533647867,0.08646783,2680.1,2679.9,1.56716315]
[1727533649166,3.73108,2680.2,2679.9,1.56716315]
[1727533649540,0.08646783,2680.1,2679.9,1.56716315]
[1727533650264,3.81769783,2680.1,2679.9,1.56716315]
[1727533650472,3.81769783,2680.1,2679.4,0.8275]
[1727533650473,3.73183,2679.7,2679.4,0.8275]
[1727533651361,0.08646783,2679.6,2679.4,0.8275]
[1727533651672,0.452756,2679.8,2679.4,0.8275]
[1727533651903,0.08646783,2679.5,2679.4,0.8275]
[1727533652113,3.73164,2679.8,2679.4,2.39466315]
[1727533652264,0.08646783,2679.7,2679.4,2.39466315]
[1727533652455,0.08646783,2679.6,2679.4,2.39466315]
[1727533652805,3.73164,2679.8,2679.4,2.39466315]
[1727533652967,0.08646783,2679.5,2679.4,2.39466315]
[1727533653297,3.73164,2679.8,2679.4,2.39466315]
[1727533653600,0.08646783,2679.5,2679.4,2.39466315]
[1727533653898,3.73164,2679.8,2679.4,2.39466315]
[1727533654196,0.08646783,2679.5,2679.4,1.56716315]
[1727533654504,3.73164,2679.8,2679.4,1.56716315]
[1727533654794,0.08646783,2679.5,2679.4,1.56716315]
[1727533655213,4.52752,2679.9,2679.4,1.56716315]
[1727533655357,0.08646783,2679.5,2679.4,1.49516315]
[1727533655566,3.73191,2679.6,2679.2,0.791]
[1727533655804,0.08646783,2679.5,2679.2,4.52344]
[1727533656095,0.08646783,2679.5,2679.3,1.56716315]
[1727533656304,3.73183,2679.7,2679.2,0.791]
[1727533656606,0.08617263,2679.4,2679.3,1.56716315]
[1727533656774,0.46134778,2680.1,2679.5,3.73195]
[1727533657097,8.2141,2680.3,2679.9,1.56716315]
[1727533657398,4.5048,2680.5,2680.2,1.56716315]
[1727533657563,6.072325,2680.5,2680.2,1.56716315]
[1727533658064,3.81662145,2680.4,2680.2,1.56716315]
[1727533658267,3.81662145,2680.4,2680.0,0.791]
[1727533659711,7.54749145,2680.4,2680.0,0.791]
[1727533660006,0.08577145,2680.4,2680.0,0.791]
[1727533660170,3.81658145,2680.4,2680.0,0.791]
[1727533661206,0.08577145,2680.4,2680.0,0.791]
[1727533661429,0.08577145,2680.4,2680.1,3.39498109]
[1727533662076,0.08577145,2680.4,2680.3,4.18598109]
[1727533662481,3.73025,2680.8,2680.3,4.18598109]
[1727533662781,3.73044,2680.7,2680.3,4.18598109]
[1727533663007,3.81686991,2680.7,2680.3,0.791]
[1727533663512,3.73053,2680.6,2680.3,0.791]
[1727533663667,3.81686991,2680.7,2680.3,0.791]
[1727533663868,3.73044,2680.7,2680.3,0.791]
[1727533664072,0.08642991,2680.6,2680.3,0.791]
[1727533664712,3.81697991,2680.6,2680.3,0.791]
[1727533664914,0.08642991,2680.6,2680.3,0.791]
[1727533665414,3.81704991,2680.6,2680.3,0.791]
[1727533665715,3.81704991,2680.6,2680.0,4.52221]
[1727533665716,3.73066,2680.5,2680.0,4.52221]
[1727533666214,4.50464,2680.6,2680.0,4.52221]
[1727533666378,0.08642991,2680.4,2680.2,3.73102]
[1727533666574,4.50445,2680.8,2680.2,3.73102]
[1727533666880,0.08642991,2680.3,2680.2,3.73102]
[1727533667090,4.50445,2680.8,2680.2,3.73102]
[1727533667311,0.08642991,2680.3,2680.1,3.39498109]
[1727533667619,0.08642991,2680.2,2680.1,3.39498109]
[1727533667973,9.429235,2680.8,2680.1,3.39498109]
[1727533668289,5.698885,2680.8,2680.2,3.73104]
[1727533668601,3.73045,2680.7,2680.2,3.73104]
[1727533668812,3.73051,2680.6,2680.1,7.12606109]
[1727533669985,3.73051,2680.6,2680.1,3.73108]
[1727533670581,8.4040695,2680.6,2680.1,3.73108]
[1727533671117,3.73076,2680.5,2680.0,4.5223]
[1727533671515,8.4040895,2680.6,2680.1,3.73118]
[1727533671721,3.73067,2680.5,2680.0,0.791]
[1727533671879,3.73067,2680.5,2680.0,8.25351]
[1727533672620,4.6734495,2680.6,2680.1,3.73117]
[1727533672780,0.08703534,2680.4,2680.1,3.73117]
[1727533672975,3.73051,2680.6,2680.1,3.73117]
[1727533673221,0.08703534,2680.3,2680.0,0.791]
[1727533673521,3.73074,2680.5,2680.1,3.73118]
[1727533674110,0.08703534,2680.4,2680.1,3.73118]
[1727533674615,3.73045,2680.7,2680.1,3.73118]
[1727533674813,0.08703534,2680.3,2680.1,3.73118]
[1727533675004,3.73051,2680.6,2680.1,3.73118]
[1727533675203,4.180905,2680.7,2680.2,3.73098]
[1727533675204,3.73045,2680.7,2680.2,3.73098]
[1727533675405,3.73045,2680.7,2680.3,3.73091]
[1727533675580,0.7768,2680.2,2679.8,0.7757]
[1727533675777,3.73131,2680.1,2679.6,0.7757]
[1727533676087,3.73151,2679.9,2679.4,0.7757]
[1727533676395,7.913421,2680.1,2679.4,4.50784]
[1727533676588,7.913421,2680.1,2679.5,3.73202]
[1727533676589,0.8690221,2680.0,2679.5,3.73202]
[1727533677121,4.6003821,2680.0,2679.5,3.73202]
[1727533677324,4.6003821,2680.0,2679.0,8.22268594]
[1727533677325,4.17178109,2679.9,2679.1,0.7757]
[1727533677479,3.73187,2679.7,2679.1,0.7757]
[1727533677823,3.73191,2679.6,2679.1,0.7757]
[1727533678194,3.73187,2679.7,2679.1,0.7757]
[1727533678386,3.73202,2679.6,2679.1,0.7757]
[1727533678587,1.523189,2679.5,2679.1,0.7757]
[1727533678811,1.523189,2679.5,2678.7,7.12813109]
[1727533678812,3.73242,2679.3,2678.8,0.7757]
[1727533680218,3.73248,2679.2,2678.8,0.7757]
[1727533680806,3.73242,2679.3,2678.8,0.7757]
[1727533681179,3.73246,2679.2,2678.8,0.7757]
[1727533681526,3.73242,2679.3,2678.8,0.7757]
[1727533682688,3.73219,2679.4,2678.8,4.17068109]
[1727533682925,3.73219,2679.4,2678.8,7.90369109]
[1727533683528,3.73219,2679.4,2678.8,7.90360109]
[1727533683827,3.73219,2679.4,2679.0,3.39498109]
[1727533684127,0.7768,2679.5,2679.0,3.39498109]
[1727533684333,3.73201,2679.6,2679.1,0.7757]
[1727533684486,5.222393,2679.6,2679.1,0.7757]
[1727533685424,3.73205,2679.5,2679.1,0.7757]
[1727533687300,7.4642,2679.5,2679.1,0.7757]
[1727533687703,3.73205,2679.5,2679.1,0.7757]
[1727533687909,0.08560489,2679.4,2679.1,0.7757]
[1727533688538,3.7324,2679.3,2678.8,4.17068109]
[1727533688830,0.08558217,2679.2,2678.8,4.17068109]
[1727533689007,3.73246,2679.2,2678.8,4.17068109]
[1727533689205,0.08558217,2679.1,2678.8,4.17068109]
[1727533689446,0.08558217,2679.1,2678.8,7.90368109]
[1727533689827,3.7324,2679.3,2678.8,7.90368109]
[1727533690029,0.08558217,2679.0,2678.8,4.17068109]
[1727533690232,3.73247,2679.2,2678.8,4.17068109]
[1727533690435,0.08558217,2678.9,2678.8,4.17068109]
[1727533690962,3.73267,2679.1,2678.8,0.7757]
[1727533691168,0.08529447,2678.9,2678.8,0.7757]
[1727533691457,3.73267,2679.1,2678.8,0.7757]
[1727533691647,0.08529447,2678.9,2678.8,0.7757]
[1727533691832,3.73267,2679.1,2678.8,0.7757]
[1727533692031,0.08529447,2678.9,2678.8,0.7757]
[1727533692259,3.73267,2679.1,2678.8,0.7757]
[1727533692741,0.08529447,2679.0,2678.8,0.7757]
[1727533692951,0.08529447,2679.0,2678.6,4.17068109]
[1727533693192,3.7329,2678.9,2678.6,0.7757]
[1727533693453,3.7329,2678.9,2678.4,0.8257]
[1727533693454,3.73308,2678.8,2678.4,0.8257]
[1727533693641,3.81837447,2678.8,2678.4,0.8257]
[1727533694264,0.08529447,2678.8,2678.4,0.8257]
[1727533694443,0.08529447,2678.8,2678.4,4.55922]
[1727533695536,0.08529447,2678.8,2678.4,4.55917]
[1727533696067,3.73328,2678.7,2678.2,3.7338]
[1727533696218,3.73328,2678.7,2678.2,4.5595]
[1727533696422,0.7989,2678.6,2678.2,4.5595]
[1727533696644,0.88419447,2678.6,2678.2,4.5595]
[1727533696967,0.08529447,2678.6,2678.2,4.55945]
[1727533697183,0.08529447,2678.6,2678.2,8.29322]
[1727533697332,0.08529447,2678.6,2678.2,4.55945]
[1727533697726,0.08529447,2678.6,2678.2,8.29323]
[1727533697946,0.08529447,2678.6,2678.2,4.55945]
[1727533698667,4.53193,2678.8,2678.3,3.73367]
[1727533698866,0.08529447,2678.5,2678.3,3.73367]
[1727533699071,5.358416,2678.8,2678.3,3.73367]
[1727533699246,0.08529447,2678.4,2678.3,3.73367]
[1727533699442,4.53193,2678.8,2678.3,3.73367]
[1727533699642,0.08529447,2678.4,2678.3,3.73367]
[1727533699854,5.358418,2678.8,2678.3,3.73367]
[1727533700059,0.08529447,2678.4,2678.3,3.73367]
[1727533700245,3.73315,2678.7,2678.3,3.73367]
[1727533700747,0.08529447,2678.6,2678.3,3.73367]
[1727533701134,0.08529447,2678.6,2678.2,4.22068109]
[1727533701544,3.81858447,2678.6,2678.2,0.8257]
[1727533701734,3.73354,2678.5,2678.0,7.95478109]
[1727533701931,0.08489307,2678.4,2678.0,7.95478109]
[1727533702630,3.81846307,2678.4,2678.0,4.22068109]
[1727533703033,0.08489307,2678.4,2678.0,7.95477109]
[1727533703275,0.08489307,2678.4,2678.0,4.22068109]
[1727533703630,3.81847307,2678.4,2678.0,4.22068109]
[1727533703833,3.81847307,2678.4,2678.0,7.95479109]
[1727533704034,3.81847307,2678.4,2678.0,4.22068109]
[1727533704469,4.59757307,2678.4,2678.0,0.8257]
[1727533704669,5.1117687,2678.4,2677.9,3.73414]
[1727533705057,5.1117687,2678.4,2677.7,4.55073]
[1727533705241,5.1117687,2678.4,2677.4,10.84498109]
[1727533705242,0.7791,2678.0,2677.6,3.73468]
[1727533705758,0.08434015,2677.9,2677.7,3.73453]
[1727533705963,0.08434015,2677.9,2677.7,7.46898]
[1727533706165,0.08434015,2677.9,2677.7,7.46891]
[1727533706347,0.08434015,2677.9,2677.7,3.73445]
[1727533707580,0.08434015,2677.9,2677.4,0.8162]
[1727533707793,3.81868015,2677.9,2677.4,4.55113]